Workbook

Sheet Summary Sheet
B2: Back Country Horsemen of Washington
B3: Volunteer Hours Report
B4: Use for 2019/2020 Reporting Year
D5: Rate per hour/mile | E5: Total Value
B6: Total Basic Hours | C6: ='Hours Database'!G7 -> 51 | D6: 27.2 | E6: =SUM(C6*D6) -> 1387.2
B7: Total Skilled Hours | C7: ='Hours Database'!H7 -> 17 | D7: 40.8 | E7: =SUM(C7*D7) -> 693.6
B8: LNT and Education | C8: ='Hours Database'!I7 -> 38 | D8: 27.2 | E8: =SUM(C8*D8) -> 1033.6
B9: Admin and Public Meetings | C9: ='Hours Database'!J7 -> 58 | D9: 27.2 | E9: =SUM(C9*D9) -> 1577.6
B10: Travel Time | C10: ='Hours Database'!K7 -> 43.75 | D10: 27.2 | E10: =SUM(C10*D10) -> 1190
B11: Total Hours | C11: =SUM(C5:C10) -> 207.75 | D11: Hourly Dollar Values | E11: =SUM(E6:E10) -> 5882
B13: Vehicle Mileage | C13: ='Hours Database'!L7 -> 554 | D13: 0.95 | E13: =SUM(C13*D13) -> 526.3
B14: Total Miles | C14: =SUM(C13:C13) -> 554 | D14: Miles Dollar Values | E14: =SUM(E13:E13) -> 526.3
B16: Total Stock Days | C16: ='Hours Database'!O7 -> 3 | D16: 100 | E16: =SUM(C16*D16) -> 300
B18: Grand Total | E18: =SUM(E11+E14+E16) -> 6708.3

Sheet Hours Database
A1: Revised: 01/01/2021 | B1: BACK COUNTRY HORSEMEN OF WASHINGTON
A2: BCHW VH Document 3. | B2: Volunteer Hours Report for year 2020/2021
A3: Use for the 2020/2021 Reporting Year | D3: CHAPTER NAME (Practice page of what not to do) PowerPoint Slide #35
G4: Work | H4: Hours | I4: Other Hours | K4: Travel | M4: Equines | O4: Total
A5: Volunteer Name | B5: Chapter | C5: Project | E5: Agency | F5: Dist. | G5: Basic | H5: Skilled | I5: LNT | J5: Admin | K5: Travel | L5: Vehicle | M5: Quant | N5: Days | O5: Stock
C6: Date | D6: Description of work/ trail/trail head names | E6: Code | G6: Hours | H6: Hours | I6: Educ. | J6: Pub Mtg | K6: Time | L6: Miles | M6: Stock | N6: Used | O6: Days | P6: Regional Coordinator Notes
D7: Calculated Totals | G7: =SUM(G8:G2281) -> 51 | H7: 17 | I7: 38 | J7: 58 | K7: 43.75 | L7: 554 | M7: 214 | N7: 5 | O7: =SUM(O8:O2221) -> 3
A8: Dave Sunde | B8: OVC | C8: 01/01-01/31 | D8: BCHW Vice President 01/01/19 - 01/31/19 | E8: G | J8: 31 | O8: 0 | P8: Change date to only one date per field
A9: " " | B9: OVC | C9: 2019-06-30 | D9: Saw Certification Class Twisp River Horse Camp | E9: E | F9: OKNF | I9: 8 | K9: 0.75 | L9: 50 | O9: 0 | P9: Add name (NO " ") Change agency code to A and round up Travel Time to 1 hr
A10: Deb Wesselius | C10: 15/2 | D10: BCHW Awards Chair, prepare presentation packets for judging | E10: G | K10: 10 | O10: 0 | P10: Add missing chapter code and correct the date. Move hrs from TT col. to Admin col.
A11: Deb Wesselius | B11: LCC | C11: 2019-08-15 | D11: Pack in 150 Lbs gear tools and supplies for the Pacific Crest Trail crew. Snograss Trail #86, BerryPatch TH | E11: A | F11: GPNF | G11: 2 | H11: 7 | K11: 4 | L11: 150 | N11: 2 | O11: 0 | P11: Input 2 stock days in Ccolumn M, 1 stock day in Column N and 2 stock days in Col. O
A12: JoAnn Yost | B12: GHC | C12: 2019-02-15 | D12: BCHW Regional VHC | E12: G | K12: 15 | O12: 0 | P12: Move hours from the Travel Time column K to the Admin column J
A13: Louise Caywood | B13: PCC | C13: 2019-02-19 | D13: WA State Horse Expo, Vancouver WA BCHW LNT 02/19 - 02/21 | E13: G | I13: 24 | K13: 4.25 | L13: 165 | O13: 0 | P13: Change agency code to E EDU. and round up Travel Time to 4.5 hrs
A14: Barb Taylor | B14: NEC | C14: 2019-05-15 | D14: Big Canyon Rd Hwy clean-up | E14: C | F14: Biggy C | G14: 6 | K14: 1 | M14: 55 | O14: 0 | P14: Delete made up District code from Col. F & move hours from Qty Stock Col. M to VM Col. L
A15: Peggy Swanberg | B15: OVC | C15: 2019-03-10 | D15: Regional VHC, review reports | E15: E | J15: 15 | O15: 0 | P15: Change agency code to G for Admin
A16: Dave Sunde | B16: OVC | C16: 2019-07-30 | D16: State Wide work party, Pasayten - Thirty Mile, Sawyer cross cut saw | E16: A | G16: 9 | K16: 1.75 | L16: 75 | M16: 1 | P16: Add missing District code, move hrs from Basic to Skilled Col. & round up TT to 2 hrs. Add missing stock days
A17: Deb Wesselius | B17: LCC | C17: 2001-06-30 | D17: State Wide work party, Pasayten - Packer | E17: A | F17: OKNF | G17: 7 | H17: 2 | K17: 5 | M17: 1 | N17: 1 | O17: 1 | P17: Correct year In date Col. Change the fields (move hrs) between Basic & Skilled.
A18: Caywood Louise | B18: PCC | C18: 2019-07-10 | D18: BCHW Gravel Haul at Mima Mounds TH record accomplishment video & editing | J18: 12 | O18: 0 | P18: Add missing Agency code E Edu. Move hrs from Admin Col. To Edu Col. I. Add TT & VM
A19: Barb Taylor | B19: NEC | C19: 2019-01-16 | D19: Secretary minutes | E19: G | G19: 2 | O19: 0 | P19: Move hours from the Basic Hours column to the Admin column J
A20: JoAnn Yost | B20: GHC | C20: 2006-08-12 | D20: Organize and set-up Fun Ride | E20: G | I20: 6 | L20: 20 | O20: 0 | P20: Correct year in date Col. Move hrs from Edu col. to Admin column. Add missing TT
A21: Jnn Yost | B21: GHC | D21: Lop and toss branches North Fork Humptulips | E21: A | F21: OLNF | H21: 8 | K21: 2 | L21: 92 | M21: 1 | N21: 1 | O21: 1 | P21: Correct name, move hours from Skilled column over to the Basic Col. Non Skilled
A22: Barbara Vache' | B22: BCHW | C22: 01/05-05/31 | D22: UnitedStatesForestService meeting on volunteer paperwork, reviewed two Back Country Horsemen of Washington chapters from two different Back Country Horsemen of Washington chapters Twisp River Horse Camp | E22: A | F22: RegVHC | G22: 15 | O22: 0 | P22: Correct chapter code. Correct date. Clean-up & abbreviate Description. Correct Dist. Code move hrs from Basic hrs to Administration column.
A23: Smith " " | B23: LCC | C23: 2019-05-25 | D23: Sawyer, Klickitat Trail 7A | E23: A | F23: GPNF | G23: 10 | L23: 2 | M23: 156 | N23: 1 | O23: 1 | P23: Correct name, move hours from Basic col. over to the Skilled col. Move hrs over one column M & L. to K & L. Add 1 qnty stock
O24: =SUM(M24*N24) -> 0
O25: 0
O26: 0
O27: 0
O28: 0
O29: 0
O30: 0
O31: 0
O32: 0
O33: 0
O34: 0
O35: 0
O36: 0
O37: 0
O38: 0
O39: 0
O40: 0
O41: 0
O42: 0
O43: 0
O44: 0
O45: 0
O46: 0
O47: 0
O48: 0
O49: 0
O50: 0
O51: 0
O52: 0
O53: 0
O54: 0
O55: 0
O56: 0
O57: 0
O58: 0
O59: 0
O60: 0
O61: 0
O62: 0
O63: 0
O64: 0
O65: 0
O66: =SUM(M66*N66) -> 0
O67: 0
O68: 0
O69: 0
O70: 0
O71: 0
O72: 0
O73: 0
O74: 0
O75: 0
O76: 0
O77: 0
O78: 0
O79: 0
O80: 0
O81: 0
O82: 0
O83: 0
O84: 0
O85: 0
O86: 0
O87: 0
O88: 0
O89: 0
O90: 0
O91: 0
O92: 0
O93: 0
O94: 0
O95: 0
O96: 0
O97: 0
O98: 0
O99: 0
O100: 0
O101: 0
O102: 0
O103: 0
O104: 0
O105: 0
O106: 0
O107: 0
O108: 0
O109: 0
O110: 0
O111: 0
O112: 0
O113: 0
O114: 0
O115: 0
O116: 0
O117: 0
O118: 0
O119: 0
O120: 0
O121: 0
O122: 0
O123: 0
O124: 0
O125: 0
O126: 0
O127: 0
O128: 0
O129: 0
O130: =SUM(M130*N130) -> 0
O131: 0
O132: 0
O133: 0
O134: 0
O135: 0
O136: 0
O137: 0
O138: 0
O139: 0
O140: 0
O141: 0
O142: 0
O143: 0
O144: 0
O145: 0
O146: 0
O147: 0
O148: 0
O149: 0
O150: 0
O151: 0
O152: 0
O153: 0
O154: 0
O155: 0
O156: 0
O157: 0
O158: 0
O159: 0
O160: 0
O161: 0
O162: 0
O163: 0
O164: 0
O165: 0
O166: 0
O167: 0
O168: 0
O169: 0
O170: 0
O171: 0
O172: 0
O173: 0
O174: 0
O175: 0
O176: 0
O177: 0
O178: 0
O179: 0
O180: 0
O181: 0
O182: 0
O183: 0
O184: 0
O185: 0
O186: 0
O187: 0
O188: 0
O189: 0
O190: 0
O191: 0
O192: 0
O193: 0
O194: =SUM(M194*N194) -> 0
O195: 0
O196: 0
O197: 0
O198: 0
O199: 0
O200: 0
... 2086 more rows

Sheet Away Sheet (3a)
A1: Revised: 01/01/2021 | B1: BACK COUNTRY HORSEMEN OF WASHINGTON
A2: BCHW VH Document 3a.
A3: FOR PRINTING & FOR USE IN THE FIELD | D3: Volunteer Hours Report for Year 2020/2021
A4: Use for the 2020/2021 Reporting Year | D4: CHAPTER NAME (PRINT ME AND HAND OUT)
D5: Desription of Work/Trailhead Names | G5: Work | H5: Hours | I5: Other Hours | K5: Travel | M5: Equines | O5: Total
B6: Chapter | C6: Project | E6: Agency | F6: Dist. | G6: Basic | H6: Skilled | I6: LNT | J6: Admin | K6: Travel | L6: Vehicle | M6: Quant | N6: Days | O6: Stock
A7: Volunteer Name | C7: Date | E7: Code | G7: Hours | H7: Hours | I7: Educ. | J7: Pub Mtg | K7: Time | L7: Miles | M7: Stock | N7: Used | O7: Days
D8: Calculated Totals | G8: 0 | H8: 0 | I8: 0 | J8: 0 | K8: 0 | L8: 0 | M8: 0 | N8: 0 | O8: 0
D9: I AM A PRINTABLE DOCUMENT | O9: 0
D10: "AWAY SHEET" TO BE TAKEN INTO THE FIELD | O10: 0
O11: 0
O12: 0
O13: 0
O14: 0
O15: 0
O16: 0
O17: 0
O18: 0
O19: 0
O20: 0
O21: 0
O22: 0
O23: 0
A24: A - USFS; B - State DNR; C - State Parks & Hiway; D - National Parks; E - Education/LNT; F - WDFW; G - Administration; M - BLM; O - Other (NOLT); T - Private Timber; W - County
